[Event "FIDE Rating Open 2024"]
[Site "Dhaka"]
[Date "2024.01.19"]
[Round "5.2"]
[White "Rahman, Ziaur"]
[Black "Mohammad, Javed"]
[Result "1-0"]
[ECO "D79"]
[WhiteElo "2428"]
[BlackElo "2088"]
[Annotator "RC"]
[PlyCount "100"]
[EventDate "2024.01.16"]
[EventType "swiss"]
[EventCountry "BAN"]
[SourceTitle "playchess.com"]
[Source "ChessBase"]
[SourceQuality "1"]
[TimeControl "5400+30"]

1. Nf3 {[%emt 0:00:04]} Nf6 {[%emt 0:00:39]} 2. c4 {[%emt 0:01:32]} c5 {[%emt 0:01:31]} 3. Nc3 {[%emt 0:00:14]} Nc6 {[%emt 0:02:05]} 4. g3 {[%emt 0:00:10]} g6 {[%emt 0:00:58]} 5. Bg2 {[%emt 0:00:03]} Bg7 {[%emt 0:00:13]} 6. d4 {[%emt 0:00:17]} cxd4 {[%emt 0:00:39]} 7. Nxd4 {[%emt 0:00:05]} O-O {[%emt 0:00:55]} 8. O-O {[%emt 0:00:05]} d5 {[%emt 0:05:05]} 9. cxd5 {[%emt 0:09:46]} Nxd5 {[%emt 0:00:22]} 10. Nxd5 {[%emt 0:14:15]} Nxd4 {[%emt 1:23:03]} 11. Bg5 {[%emt 1:09:29]} Nc6 {[%emt 0:00:00]} 12. Rc1 {[%emt 0:00:00]} h6 {[%emt 0:00:00]} 13. Nxe7+ {[%emt 0:00:00]} Nxe7 {[%emt 0:00:00]} 14. Qxd8 {[%emt 0:00:00]} Rxd8 {[%emt 0:00:00]} 15. Bxe7 {[%emt 0:00:00]} Re8 {[%emt 0:00:00]} 16. Ba3 {[%emt 0:00:00]} Rxe2 {[%emt 0:00:00]} 17. Rfd1 {[%emt 0:00:00]} Bf5 {[%emt 0:00:00]} 18. Bxb7 {[%emt 0:00:00]} Rb8 {[%emt 0:00:00]} 19. Bf3 {[%emt 0:00:00]} Ree8 {[%emt 0:00:00]} 20. b3 {[%emt 0:00:00]} Rbc8 {[%emt 0:00:00]} 21. g4 {[%emt 0:00:00]} Be6 {[%emt 0:00:00]} 22. Kg2 {[%emt 0:00:00]} Be5 {[%emt 0:00:00]} 23. Rc5 {[%emt 0:00:00]} Bf6 {[%emt 0:00:00]} 24. h3 {[%emt 0:00:00]} Rcd8 {[%emt 0:00:00]} 25. Rxd8 {[%emt 0:00:00]} Rxd8 {[%emt 0:00:00]} 26. Ra5 {[%emt 0:00:00]} Bd4 {[%emt 0:00:00]} 27. Bc5 {[%emt 0:00:00]} Bxc5 {[%emt 0:00:00]} 28. Rxc5 {[%emt 0:00:00]} Rd7 {[%emt 0:00:00]} 29. h4 {[%emt 0:00:00]} Kg7 {[%emt 0:00:00]} 30. Ra5 {[%emt 0:00:00]} Kf6 {[%emt 0:01:03]} 31. Kg3 {[%emt 0:00:00]} Ke7 {[%emt 0:01:44]} 32. Be4 {[%emt 0:00:00]} Kf6 {[%emt 0:00:57]} 33. f3 {[%emt 0:00:00]} g5 {[%emt 0:06:14]} 34. Bf5 {[%emt 0:00:00]} Rc7 {[%emt 0:00:47]} 35. Bxe6 {[%emt 0:00:00]} fxe6 {[%emt 0:00:02]} 36. h5 {[%emt 0:00:00]} Ke7 {[%emt 0:00:46]} 37. Ra6 {[%emt 0:00:00]} Kf6 {[%emt 0:00:16]} 38. Kf2 {[%emt 0:00:00]} Ke5 {[%emt 0:00:13]} 39. Ra4 {[%emt 0:00:00]} Kd5 {[%emt 0:00:57]} 40. Ke2 {[%emt 0:00:00]} Ke5 {[%emt 0:02:01]} 41. Kd3 {[%emt 0:00:00]} Rd7+ {[%emt 0:00:00]} 42. Ke3 {[%emt 0:00:00]} Rc7 {[%emt 0:00:00]} 43. Ra5+ {[%emt 0:00:00]} Kf6 {[%emt 0:00:09]} 44. Ke4 {[%emt 0:00:00]} Rd7 {[%emt 0:00:10]} 45. b4 {[%emt 0:00:00]} Rb7 {[%emt 0:00:36]} 46. a3 {[%emt 0:17:30]} Rd7 {[%emt 0:00:30]} 47. Rc5 {[%emt 0:00:00]} Rd1 {[%emt 0:00:57]} 48. Rc7 {[%emt 0:00:00]} Re1+ {[%emt 0:00:57]} 49. Kd3 {[%emt 0:00:00]} Rb1 {[%emt 0:00:37]} 50. Rxa7 {[%emt 0:00:00]} Ke5 {[%emt 0:01:04]} 1-0

[Event "FIDE Rating Open 2024"]
[Site "Dhaka"]
[Date "2024.01.19"]
[Round "5.3"]
[White "Nasim Hossain, Bhuiyan"]
[Black "Zia, Tahsin Tajwar"]
[Result "0-1"]
[ECO "A47"]
[WhiteElo "1812"]
[BlackElo "2275"]
[Annotator "RC"]
[PlyCount "84"]
[EventDate "2024.01.16"]
[EventType "swiss"]
[EventCountry "BAN"]
[SourceTitle "playchess.com"]
[Source "ChessBase"]
[SourceQuality "1"]
[TimeControl "5400+30"]

1. d4 {[%emt 0:16:22]} Nf6 {[%emt 0:00:13]} 2. Bf4 {[%emt 0:02:42]} b6 {[%emt 0:02:24]} 3. e3 {[%emt 0:00:48]} Bb7 {[%emt 0:00:04]} 4. Nf3 {[%emt 0:00:05]} e6 {[%emt 0:00:36]} 5. h3 {[%emt 0:00:18]} Be7 {[%emt 0:00:25]} 6. Nbd2 {[%emt 0:00:05]} c5 {[%emt 0:01:58]} 7. c3 {[%emt 0:01:35]} O-O {[%emt 0:02:26]} 8. Bd3 {[%emt 0:00:13]} d6 {[%emt 0:00:21]} 9. Qe2 {[%emt 0:06:10]} cxd4 {[%emt 0:05:42]} 10. cxd4 {[%emt 0:00:30]} Nd5 {[%emt 0:00:41]} 11. O-O {[%emt 0:05:06]} Nxf4 {[%emt 1:21:10]} 12. exf4 {[%emt 0:01:23]} a6 {[%emt 0:00:00]} 13. f5 {[%emt 0:00:43]} exf5 {[%emt 0:00:00]} 14. Bxf5 {[%emt 0:00:12]} Nc6 {[%emt 0:00:00]} 15. Rac1 {[%emt 0:02:37]} Bf6 {[%emt 0:00:00]} 16. Nb3 {[%emt 0:01:26]} g6 {[%emt 0:00:00]} 17. Bb1 {[%emt 0:00:37]} Re8 {[%emt 0:00:00]} 18. Qd2 {[%emt 0:00:16]} Ne7 {[%emt 0:00:00]} 19. Qd3 {[%emt 0:04:00]} Nd5 {[%emt 0:00:00]} 20. Nbd2 {[%emt 0:01:13]} Nf4 {[%emt 0:04:30]} 21. Qa3 {[%emt 0:11:49]} Ne2+ {[%emt 0:00:00]} 22. Kh1 {[%emt 0:00:07]} Nxc1 {[%emt 0:00:00]} 23. Rxc1 {[%emt 0:00:08]} Rc8 {[%emt 0:00:00]} 24. Rd1 {[%emt 0:00:21]} b5 {[%emt 0:00:00]} 25. Bd3 {[%emt 0:00:20]} Bg5 {[%emt 0:00:00]} 26. d5 {[%emt 0:03:33]} Bxd5 {[%emt 0:00:00]} 27. Qxa6 {[%emt 0:01:09]} Bxd2 {[%emt 0:00:00]} 28. Nxd2 {[%emt 0:00:32]} Qh4 {[%emt 0:00:00]} 29. Kg1 {[%emt 0:00:52]} Qg5 {[%emt 0:00:00]} 30. Bf1 {[%emt 0:00:46]} Rc2 {[%emt 0:00:00]} 31. Qxb5 {[%emt 0:00:32]} Re5 {[%emt 0:00:00]} 32. Qd3 {[%emt 0:12:54]} Rxb2 {[%emt 0:00:00]} 33. Qd4 {[%emt 0:04:36]} Rxa2 {[%emt 0:00:00]} 34. f4 {[%emt 0:00:16]} Qh4 {[%emt 0:00:00]} 35. Nc4 {[%emt 0:02:00]} Re1 {[%emt 0:00:00]} 36. Rxe1 {[%emt 0:18:57]} Qxe1 {[%emt 0:00:00]} 37. Qxd5 {[%emt 0:00:40]} Qf2+ {[%emt 0:00:00]} 38. Kh2 {[%emt 0:00:07]} Qxf4+ {[%emt 0:00:00]} 39. Kg1 {[%emt 0:00:08]} Qf2+ {[%emt 0:00:00]} 40. Kh2 {[%emt 0:00:03]} Qxf1 {[%emt 0:00:00]} 41. Qe4 {[%emt 0:02:22]} Re2 {[%emt 0:00:00]} 42. Ne3 {[%emt 0:02:57]} Qf3 {[%emt 0:00:00]} 0-1

[Event "FIDE Rating Open 2024"]
[Site "Dhaka"]
[Date "2024.01.19"]
[Round "5.5"]
[White "Abu Sufian, Shakil"]
[Black "Rahman, Syed Mahfuzur"]
[Result "0-1"]
[ECO "B51"]
[WhiteElo "2199"]
[BlackElo "2087"]
[Annotator "RC"]
[PlyCount "88"]
[EventDate "2024.01.16"]
[EventType "swiss"]
[EventCountry "BAN"]
[SourceTitle "playchess.com"]
[Source "ChessBase"]
[SourceQuality "1"]
[TimeControl "5400+30"]

1. e4 {[%emt 0:00:03]} c5 {[%emt 0:20:16]} 2. Nf3 {[%emt 0:00:08]} Nc6 {[%emt 0:00:06]} 3. Bb5 {[%emt 0:00:12]} d6 {[%emt 0:00:07]} 4. O-O {[%emt 0:00:17]} Bd7 {[%emt 0:00:02]} 5. Re1 {[%emt 0:00:20]} a6 {[%emt 0:00:04]} 6. Bf1 {[%emt 0:00:04]} Bg4 {[%emt 0:00:37]} 7. h3 {[%emt 0:00:34]} Bxf3 {[%emt 0:00:17]} 8. Qxf3 {[%emt 0:00:09]} g6 {[%emt 0:00:04]} 9. Qd1 {[%emt 0:04:13]} Bg7 {[%emt 0:00:14]} 10. c3 {[%emt 0:00:23]} e5 {[%emt 0:04:01]} 11. d3 {[%emt 0:01:59]} Nf6 {[%emt 0:00:39]} 12. Be3 {[%emt 0:03:43]} O-O {[%emt 0:00:13]} 13. Nd2 {[%emt 0:01:19]} b5 {[%emt 0:03:46]} 14. a3 {[%emt 0:03:29]} Re8 {[%emt 0:02:55]} 15. b4 {[%emt 0:04:49]} cxb4 {[%emt 0:03:13]} 16. axb4 {[%emt 0:00:26]} d5 {[%emt 0:00:04]} 17. Bc5 {[%emt 0:00:47]} d4 {[%emt 0:00:34]} 18. cxd4 {[%emt 0:03:27]} Nxd4 {[%emt 0:05:26]} 19. Nb3 {[%emt 0:08:43]} Nxb3 {[%emt 0:12:12]} 20. Qxb3 {[%emt 0:00:20]} Nd7 {[%emt 0:00:01]} 21. Be3 {[%emt 0:00:20]} Nb6 {[%emt 0:03:59]} 22. Rec1 {[%emt 0:01:24]} Na4 {[%emt 0:02:21]} 23. Be2 {[%emt 0:00:39]} Qd6 {[%emt 0:04:25]} 24. Rc2 {[%emt 0:04:51]} Bf8 {[%emt 0:02:52]} 25. Bd2 {[%emt 0:00:37]} Rac8 {[%emt 0:01:42]} 26. Rac1 {[%emt 0:00:20]} Rxc2 {[%emt 0:00:36]} 27. Qxc2 {[%emt 0:01:20]} Rd8 {[%emt 0:02:03]} 28. Qb3 {[%emt 0:11:48]} Be7 {[%emt 0:05:08]} 29. g3 {[%emt 0:01:42]} Nb6 {[%emt 0:06:41]} 30. Kg2 {[%emt 0:04:11]} Rc8 {[%emt 0:07:55]} 31. Rf1 {[%emt 0:01:57]} Nd7 {[%emt 0:02:42]} 32. f4 {[%emt 0:03:47]} Bf6 {[%emt 0:01:13]} 33. Be3 {[%emt 0:08:33]} exf4 {[%emt 0:04:48]} 34. gxf4 {[%emt 0:00:28]} Rc3 {[%emt 0:00:59]} 35. Qb1 {[%emt 0:00:38]} Bd4 {[%emt 0:01:11]} 36. e5 {[%emt 0:09:54]} Qb6 {[%emt 0:00:02]} 37. Bd2 {[%emt 0:00:24]} Rc7 {[%emt 0:00:38]} 38. Rc1 {[%emt 0:03:02]} Nf8 {[%emt 0:00:54]} 39. Bf3 {[%emt 0:00:37]} Ne6 {[%emt 0:00:41]} 40. Rxc7 {[%emt 0:00:49]} Qxc7 {[%emt 0:00:17]} 41. Qb3 {[%emt 0:01:48]} Qe7 {[%emt 0:01:19]} 42. Kg3 {[%emt 0:01:37]} Qh4+ {[%emt 0:00:54]} 43. Kxh4 {[%emt 0:00:35]} Bf2+ {[%emt 0:00:02]} 44. Kg4 {[%emt 0:00:19]} h5# {[%emt 0:00:03]} 0-1

[Event "FIDE Rating Open 2024"]
[Site "Dhaka"]
[Date "2024.01.19"]
[Round "5.6"]
[White "Ahmed, Sheikh Nasir"]
[Black "Sakline Mostafa, Sajid"]
[Result "1-0"]
[ECO "A11"]
[WhiteElo "2182"]
[BlackElo "2110"]
[Annotator "RC"]
[PlyCount "78"]
[EventDate "2024.01.16"]
[EventType "swiss"]
[EventCountry "BAN"]
[SourceTitle "playchess.com"]
[Source "ChessBase"]
[SourceQuality "1"]
[TimeControl "5400+30"]

1. c4 {[%emt 0:04:41]} c6 {[%emt 0:00:11]} 2. Nf3 {[%emt 0:04:01]} d5 {[%emt 0:00:17]} 3. b3 {[%emt 0:02:01]} Nf6 {[%emt 0:01:57]} 4. g3 {[%emt 0:06:32]} g6 {[%emt 0:01:03]} 5. Bb2 {[%emt 0:00:12]} Bg7 {[%emt 0:00:32]} 6. Bg2 {[%emt 0:00:10]} O-O {[%emt 0:02:43]} 7. O-O {[%emt 0:00:09]} a5 {[%emt 0:11:47]} 8. d3 {[%emt 0:00:38]} a4 {[%emt 0:08:37]} 9. b4 {[%emt 0:16:37]} b5 {[%emt 0:18:49]} 10. Qc1 {[%emt 0:07:18]} Bb7 {[%emt 0:04:20]} 11. Rd1 {[%emt 0:04:14]} Nbd7 {[%emt 0:05:08]} 12. Na3 {[%emt 0:05:23]} Rc8 {[%emt 0:05:15]} 13. Bc3 {[%emt 0:04:14]} Re8 {[%emt 0:05:57]} 14. Qb2 {[%emt 0:00:42]} Ba6 {[%emt 0:01:11]} 15. Rac1 {[%emt 0:01:43]} Qb6 {[%emt 0:01:09]} 16. Bd4 {[%emt 0:04:13]} Qb7 {[%emt 0:01:54]} 17. Ne5 {[%emt 0:06:40]} Nxe5 {[%emt 0:01:28]} 18. Bxe5 {[%emt 0:00:02]} Bf8 {[%emt 0:00:27]} 19. cxd5 {[%emt 0:09:32]} cxd5 {[%emt 0:01:17]} 20. Qd4 {[%emt 0:00:13]} Red8 {[%emt 0:06:15]} 21. Nb1 {[%emt 0:03:21]} Nd7 {[%emt 0:02:43]} 22. Bxd5 {[%emt 0:05:02]} Nxe5 {[%emt 0:08:50]} 23. Bxb7 {[%emt 0:00:24]} Rxc1 {[%emt 0:00:06]} 24. Rxc1 {[%emt 0:00:27]} Rxd4 {[%emt 0:00:17]} 25. Bxa6 {[%emt 0:00:03]} Rxb4 {[%emt 0:01:12]} 26. Nc3 {[%emt 0:00:12]} Rb2 {[%emt 0:02:01]} 27. Bxb5 {[%emt 0:00:36]} a3 {[%emt 0:00:24]} 28. Ba4 {[%emt 0:00:51]} e6 {[%emt 0:01:39]} 29. Bb3 {[%emt 0:04:09]} Bb4 {[%emt 0:01:24]} 30. Kf1 {[%emt 0:00:03]} Rd2 {[%emt 0:02:52]} 31. Nd1 {[%emt 0:02:16]} Kf8 {[%emt 0:02:39]} 32. h3 {[%emt 0:01:58]} Rb2 {[%emt 0:01:02]} 33. Rc8+ {[%emt 0:03:02]} Ke7 {[%emt 0:00:17]} 34. Nxb2 {[%emt 0:00:36]} axb2 {[%emt 0:00:25]} 35. Bc2 {[%emt 0:00:02]} Kd7 {[%emt 0:00:27]} 36. Rb8 {[%emt 0:00:27]} Nc6 {[%emt 0:00:02]} 37. Rb7+ {[%emt 0:02:18]} Kd6 {[%emt 0:01:03]} 38. e3 {[%emt 0:00:35]} Bc3 {[%emt 0:00:39]} 39. Rb3 {[%emt 0:00:54]} Kd5 {[%emt 0:01:41]} 1-0

[Event "FIDE Rating Open 2024"]
[Site "Dhaka"]
[Date "2024.01.20"]
[Round "6.1"]
[White "Rahman, Ziaur"]
[Black "Mohammad Minhaz Uddin"]
[Result "1/2-1/2"]
[ECO "A29"]
[WhiteElo "2428"]
[BlackElo "2224"]
[Annotator "RC"]
[PlyCount "86"]
[EventDate "2024.01.16"]
[EventType "swiss"]
[EventCountry "BAN"]
[SourceTitle "playchess.com"]
[Source "ChessBase"]
[SourceQuality "1"]
[TimeControl "5400+30"]

1. c4 {[%emt 0:00:39]} Nf6 {[%emt 0:00:12]} 2. g3 {[%emt 0:00:35]} e5 {[%emt 0:00:41]} 3. Bg2 {[%emt 0:00:18]} d5 {[%emt 0:00:50]} 4. cxd5 {[%emt 0:00:16]} Nxd5 {[%emt 1:30:47]} 5. Nf3 {[%emt 0:01:38]} Nc6 {[%emt 0:00:00]} 6. O-O {[%emt 0:00:27]} Nb6 {[%emt 0:00:00]} 7. d3 {[%emt 0:02:23]} Be7 {[%emt 0:00:00]} 8. Nc3 {[%emt 0:03:06]} O-O {[%emt 0:00:00]} 9. a3 {[%emt 0:00:33]} Be6 {[%emt 0:00:00]} 10. b4 {[%emt 0:03:14]} Nd4 {[%emt 0:00:00]} 11. Bb2 {[%emt 0:08:57]} Bb3 {[%emt 0:00:00]} 12. Qc1 {[%emt 0:08:31]} a5 {[%emt 0:00:00]} 13. b5 {[%emt 0:16:34]} Bd5 {[%emt 0:00:00]} 14. Nxd4 {[%emt 0:03:53]} Bxg2 {[%emt 0:00:00]} 15. Ne6 {[%emt 0:02:26]} Qc8 {[%emt 0:00:00]} 16. Nxf8 {[%emt 0:01:54]} Bxf1 {[%emt 0:00:00]} 17. Qxf1 {[%emt 0:01:42]} Bxf8 {[%emt 0:00:00]} 18. Qg2 {[%emt 0:00:26]} c5 {[%emt 0:00:00]} 19. Qe4 {[%emt 0:01:58]} f6 {[%emt 0:00:00]} 20. Nd5 {[%emt 0:00:44]} Nxd5 {[%emt 0:00:00]} 21. Qxd5+ {[%emt 0:00:05]} Kh8 {[%emt 0:00:00]} 22. a4 {[%emt 0:00:59]} Qc7 {[%emt 0:00:00]} 23. Rc1 {[%emt 0:02:12]} Rd8 {[%emt 0:00:00]} 24. Qf3 {[%emt 0:01:14]} b6 {[%emt 0:00:00]} 25. Rc4 {[%emt 0:01:42]} Kg8 {[%emt 0:00:00]} 26. h4 {[%emt 0:00:59]} Qf7 {[%emt 0:00:00]} 27. g4 {[%emt 0:03:15]} Qd5 {[%emt 0:00:00]} 28. Qe3 {[%emt 0:03:20]} Bd6 {[%emt 0:00:00]} 29. f3 {[%emt 0:00:59]} Rf8 {[%emt 0:00:00]} 30. Kf1 {[%emt 0:00:31]} h6 {[%emt 0:00:00]} 31. Ke1 {[%emt 0:01:39]} g5 {[%emt 0:00:00]} 32. Kd1 {[%emt 0:00:45]} Rd8 {[%emt 0:00:00]} 33. Kc2 {[%emt 0:00:25]} Bf8 {[%emt 0:00:00]} 34. Qf2 {[%emt 0:01:12]} Qe6 {[%emt 0:00:00]} 35. Bc3 {[%emt 0:03:16]} Rd7 {[%emt 0:00:00]} 36. h5 {[%emt 0:01:31]} Bg7 {[%emt 0:00:00]} 37. Qe3 {[%emt 0:00:19]} Qd5 {[%emt 0:00:00]} 38. Qe4 {[%emt 0:01:02]} Qxe4 {[%emt 0:06:29]} 39. fxe4 {[%emt 0:01:05]} Bf8 {[%emt 0:00:24]} 40. e3 {[%emt 0:02:07]} Bd6 {[%emt 0:00:10]} 41. d4 {[%emt 0:01:03]} Rc7 {[%emt 0:00:35]} 42. Kd3 {[%emt 0:10:27]} Kf7 {[%emt 0:01:02]} 43. Bb2 {[%emt 0:01:47]} Ke6 {[%emt 0:03:10]} 1/2-1/2

[Event "FIDE Rating Open 2024"]
[Site "Dhaka"]
[Date "2024.01.20"]
[Round "6.2"]
[White "Zia, Tahsin Tajwar"]
[Black "Ahmed, Sheikh Nasir"]
[Result "1-0"]
[ECO "E05"]
[WhiteElo "2275"]
[BlackElo "2182"]
[Annotator "RC"]
[PlyCount "159"]
[EventDate "2024.01.16"]
[EventType "swiss"]
[EventCountry "BAN"]
[SourceTitle "playchess.com"]
[Source "ChessBase"]
[SourceQuality "1"]
[TimeControl "5400+30"]

1. d4 {[%emt 0:00:19]} Nf6 {[%emt 0:00:19]} 2. c4 {[%emt 0:00:06]} e6 {[%emt 0:00:10]} 3. g3 {[%emt 0:00:14]} d5 {[%emt 0:00:11]} 4. Bg2 {[%emt 0:00:06]} Be7 {[%emt 0:00:30]} 5. Nf3 {[%emt 0:00:07]} O-O {[%emt 0:00:29]} 6. O-O {[%emt 0:00:27]} dxc4 {[%emt 0:00:12]} 7. Qc2 {[%emt 0:00:13]} a6 {[%emt 0:00:07]} 8. a4 {[%emt 0:02:14]} Bd7 {[%emt 0:00:36]} 9. Rd1 {[%emt 0:03:25]} Bc6 {[%emt 0:00:22]} 10. Nc3 {[%emt 0:00:08]} a5 {[%emt 0:03:01]} 11. e4 {[%emt 0:00:54]} Na6 {[%emt 0:00:12]} 12. Ne5 {[%emt 0:00:58]} Nb4 {[%emt 0:04:40]} 13. Qe2 {[%emt 0:00:18]} Nd7 {[%emt 0:06:50]} 14. Nxc4 {[%emt 0:01:24]} Nb6 {[%emt 0:01:05]} 15. Nxb6 {[%emt 0:09:17]} cxb6 {[%emt 0:00:04]} 16. d5 {[%emt 0:00:44]} exd5 {[%emt 0:11:46]} 17. exd5 {[%emt 0:00:48]} Bd7 {[%emt 0:00:09]} 18. d6 {[%emt 0:00:10]} Bf6 {[%emt 0:00:02]} 19. Be3 {[%emt 0:02:25]} Bc6 {[%emt 0:05:02]} 20. d7 {[%emt 0:02:15]} Bg5 {[%emt 0:29:01]} 21. f4 {[%emt 0:05:07]} Be7 {[%emt 0:00:04]} 22. Qf2 {[%emt 0:00:33]} Bxd7 {[%emt 0:15:42]} 23. Bxb7 {[%emt 0:22:43]} Rb8 {[%emt 0:00:14]} 24. Bf3 {[%emt 0:05:33]} Qc8 {[%emt 0:04:37]} 25. Rac1 {[%emt 0:01:46]} Bc5 {[%emt 0:00:02]} 26. Bxc5 {[%emt 0:11:01]} bxc5 {[%emt 0:00:13]} 27. Rd6 {[%emt 0:03:05]} c4 {[%emt 0:01:46]} 28. Nd5 {[%emt 0:05:39]} Nxd5 {[%emt 0:00:19]} 29. Bxd5 {[%emt 0:02:22]} Rb4 {[%emt 0:02:24]} 30. Qd4 {[%emt 0:02:11]} Bxa4 {[%emt 0:00:53]} 31. Bxf7+ {[%emt 0:01:48]} Kh8 {[%emt 0:00:02]} 32. Be6 {[%emt 0:05:17]} Qb7 {[%emt 0:01:01]} 33. Rd8 {[%emt 0:01:20]} Qe7 {[%emt 0:00:11]} 34. Rxf8+ {[%emt 0:00:16]} Qxf8 {[%emt 0:00:02]} 35. Rxc4 {[%emt 0:00:30]} Rxc4 {[%emt 0:00:29]} 36. Qxc4 {[%emt 0:01:58]} Qe8 {[%emt 0:00:52]} 37. Qc8 {[%emt 0:01:01]} Qxc8 {[%emt 0:00:45]} 38. Bxc8 {[%emt 0:00:02]} Kg8 {[%emt 0:00:21]} 39. Kf2 {[%emt 0:00:09]} Kf7 {[%emt 0:00:02]} 40. Ke3 {[%emt 0:00:05]} Ke7 {[%emt 0:00:14]} 41. Kd4 {[%emt 0:04:29]} Kd6 {[%emt 0:00:01]} 42. g4 {[%emt 0:00:52]} Bb3 {[%emt 0:00:46]} 43. g5 {[%emt 0:01:56]} h6 {[%emt 0:02:51]} 44. gxh6 {[%emt 0:00:44]} gxh6 {[%emt 0:00:02]} 45. Ba6 {[%emt 0:01:44]} Be6 {[%emt 0:00:48]} 46. Bd3 {[%emt 0:00:18]} Bb3 {[%emt 0:01:02]} 47. f5 {[%emt 0:00:46]} Bf7 {[%emt 0:05:17]} 48. Bc4 {[%emt 0:00:49]} Be8 {[%emt 0:00:02]} 49. f6 {[%emt 0:00:18]} Bg6 {[%emt 0:00:08]} 50. Kc3 {[%emt 0:02:03]} Bf5 {[%emt 0:01:14]} 51. Bg8 {[%emt 0:01:17]} Bd7 {[%emt 0:00:50]} 52. Kd4 {[%emt 0:00:10]} Bc6 {[%emt 0:01:46]} 53. Ke3 {[%emt 0:00:10]} Ba4 {[%emt 0:00:46]} 54. Kf4 {[%emt 0:00:28]} Bc2 {[%emt 0:00:28]} 55. Bc4 {[%emt 0:00:07]} Bg6 {[%emt 0:00:38]} 56. Bb3 {[%emt 0:00:51]} Bd3 {[%emt 0:00:17]} 57. Ke3 {[%emt 0:01:14]} Bf5 {[%emt 0:00:02]} 58. Kd4 {[%emt 0:00:05]} Bg4 {[%emt 0:00:49]} 59. f7 {[%emt 0:00:32]} Ke7 {[%emt 0:00:02]} 60. Kc5 {[%emt 0:00:30]} Bd7 {[%emt 0:00:17]} 61. Bc4 {[%emt 0:00:27]} a4 {[%emt 0:02:10]} 62. Bb5 {[%emt 0:01:19]} Be6 {[%emt 0:01:20]} 63. Bxa4 {[%emt 0:00:11]} Bxf7 {[%emt 0:00:14]} 64. b4 {[%emt 0:00:01]} Bg6 {[%emt 0:03:25]} 65. b5 {[%emt 0:00:07]} Kd7 {[%emt 0:00:33]} 66. b6+ {[%emt 0:00:01]} Kc8 {[%emt 0:00:01]} 67. Bc6 {[%emt 0:00:13]} Bd3 {[%emt 0:00:29]} 68. Kd6 {[%emt 0:00:12]} Be2 {[%emt 0:00:13]} 69. h4 {[%emt 0:00:07]} Kb8 {[%emt 0:00:13]} 70. Ke5 {[%emt 0:00:08]} Bd1 {[%emt 0:00:17]} 71. Kf6 {[%emt 0:00:11]} Be2 {[%emt 0:00:36]} 72. Kg6 {[%emt 0:00:09]} h5 {[%emt 0:00:05]} 73. Kg5 {[%emt 0:00:01]} Bd1 {[%emt 0:00:43]} 74. Bd5 {[%emt 0:00:40]} Be2 {[%emt 0:00:10]} 75. Bc6 {[%emt 0:00:21]} Bd1 {[%emt 0:04:24]} 76. Be8 {[%emt 0:00:05]} Kb7 {[%emt 0:00:00]} 77. Bxh5 {[%emt 0:00:03]} Bb3 {[%emt 0:00:00]} 78. Bg4 {[%emt 0:00:48]} Bf7 {[%emt 0:00:00]} 79. Bf5 {[%emt 0:00:13]} Kxb6 {[%emt 0:00:00]} 80. Bg6 {[%emt 0:00:05]} 1-0

[Event "FIDE Rating Open 2024"]
[Site "Dhaka"]
[Date "2024.01.20"]
[Round "6.3"]
[White "Subrota, Biswas"]
[Black "Rahman, Syed Mahfuzur"]
[Result "1-0"]
[ECO "B31"]
[WhiteElo "2223"]
[BlackElo "2087"]
[Annotator "ChessBase"]
[PlyCount "123"]
[EventDate "2024.01.16"]
[EventType "swiss"]
[EventCountry "BAN"]
[SourceTitle "playchess.com"]
[Source "ChessBase"]
[SourceQuality "1"]
[TimeControl "5400+30"]

1. e4 {[%emt 1:31:00]} c5 {[%emt 0:37:37]} 2. Nf3 {[%emt 0:00:00]} Nc6 {[%emt 0:00:19]} 3. Bb5 {[%emt 0:00:00]} g6 {[%emt 0:02:27]} 4. O-O {[%emt 0:00:00]} Bg7 {[%emt 0:00:02]} 5. c3 {[%emt 0:00:00]} e5 {[%emt 0:00:02]} 6. d4 {[%emt 0:00:00]} exd4 {[%emt 0:06:57]} 7. cxd4 {[%emt 0:00:00]} cxd4 {[%emt 0:00:54]} 8. Bf4 {[%emt 0:00:00]} a6 {[%emt 0:00:11]} 9. Ba4 {[%emt 0:00:00]} Nge7 {[%emt 0:03:34]} 10. Bd6 {[%emt 0:00:00]} b5 {[%emt 0:09:57]} 11. Bb3 {[%emt 0:00:00]} O-O {[%emt 0:01:24]} 12. a4 {[%emt 0:00:00]} Bb7 {[%emt 0:10:19]} 13. Nbd2 {[%emt 0:00:00]} Na5 {[%emt 0:03:57]} 14. Ba2 {[%emt 0:00:00]} Bc6 {[%emt 0:07:05]} 15. axb5 {[%emt 0:00:00]} axb5 {[%emt 0:00:30]} 16. Ne5 {[%emt 0:00:00]} Nb7 {[%emt 0:04:19]} 17. Nxf7 {[%emt 0:00:00]} Rxf7 {[%emt 0:00:16]} 18. Bxe7 {[%emt 0:00:00]} Qxe7 {[%emt 0:03:53]} 19. Bxf7+ {[%emt 0:00:00]} Kxf7 {[%emt 0:00:10]} 20. Rxa8 {[%emt 0:00:00]} Nc5 {[%emt 0:06:37]} 21. Rc8 {[%emt 0:00:00]} Bb7 {[%emt 0:00:00]} 22. Qf3+ {[%emt 0:00:00]} Bf6 {[%emt 0:00:00]} 23. Rc7 {[%emt 0:00:00]} Qe5 {[%emt 0:00:00]} 24. Qg3 {[%emt 0:00:00]} Bc6 {[%emt 0:00:00]} 25. Ra7 {[%emt 0:00:00]} Qxg3 {[%emt 0:01:53]} 26. fxg3 {[%emt 0:00:00]} Ke7 {[%emt 0:00:07]} 27. Ra3 {[%emt 0:00:00]} Bg5 {[%emt 0:00:37]} 28. Nf3 {[%emt 0:00:00]} Be3+ {[%emt 0:00:08]} 29. Rxe3 {[%emt 0:00:00]} dxe3 {[%emt 0:00:01]} 30. Re1 {[%emt 0:00:00]} Nd3 {[%emt 0:01:17]} 31. Re2 {[%emt 0:00:00]} Kf6 {[%emt 0:00:41]} 32. b3 {[%emt 0:00:00]} Bxe4 {[%emt 0:00:34]} 33. Rxe3 {[%emt 0:00:00]} d5 {[%emt 0:00:13]} 34. Kf1 {[%emt 0:00:00]} b4 {[%emt 0:00:49]} 35. Ke2 {[%emt 0:00:00]} Nc5 {[%emt 0:00:31]} 36. Kd2 {[%emt 0:00:00]} g5 {[%emt 0:00:35]} 37. g4 {[%emt 0:00:00]} h6 {[%emt 0:00:17]} 38. g3 {[%emt 0:00:00]} Nd7 {[%emt 0:00:42]} 39. Nd4 {[%emt 0:00:00]} Ne5 {[%emt 0:01:05]} 40. h3 {[%emt 0:00:00]} Bg2 {[%emt 0:00:00]} 41. Re2 {[%emt 0:00:00]} Bxh3 {[%emt 0:00:14]} 42. Rh2 {[%emt 0:00:00]} Bxg4 {[%emt 0:00:29]} 43. Rxh6+ {[%emt 0:00:00]} Ng6 {[%emt 0:00:43]} 44. Rh7 {[%emt 0:00:00]} Ne7 {[%emt 0:00:26]} 45. Rh6+ {[%emt 0:00:00]} Ng6 {[%emt 0:00:34]} 46. Ke3 {[%emt 0:00:00]} Kg7 {[%emt 0:00:15]} 47. Rh1 {[%emt 0:00:00]} Ne5 {[%emt 0:01:19]} 48. Ra1 {[%emt 0:00:00]} Bd7 {[%emt 0:00:00]} 49. Ra6 {[%emt 0:01:31]} Ng4+ {[%emt 0:01:00]} 50. Kf3 {[%emt 0:00:45]} Nf6 {[%emt 0:00:00]} 51. Rb6 {[%emt 0:00:22]} Bg4+ {[%emt 0:00:15]} 52. Kg2 {[%emt 0:00:52]} Ne4 {[%emt 0:01:15]} 53. Rb5 {[%emt 0:00:28]} Nc3 {[%emt 0:00:00]} 54. Rxb4 {[%emt 0:01:25]} Kf6 {[%emt 0:00:00]} 55. Nc6 {[%emt 0:06:53]} Bd7 {[%emt 0:00:52]} 56. Rb6 {[%emt 0:00:03]} Kf5 {[%emt 0:00:18]} 57. Kf3 {[%emt 0:00:32]} g4+ {[%emt 0:00:37]} 58. Ke3 {[%emt 0:00:29]} Ne4 {[%emt 0:00:07]} 59. Nd4+ {[%emt 0:00:06]} Ke5 {[%emt 0:00:08]} 60. Rb7 {[%emt 0:01:29]} Bc8 {[%emt 0:01:08]} 61. Rc7 {[%emt 0:01:37]} Ba6 {[%emt 0:00:47]} 62. Rc6 {[%emt 0:00:16]} 1-0